[Event "1st Bella Italia International 2022"]
[Site "Lignano"]
[Date "2022.08.19"]
[Round "4.2"]
[White "Visakh N R"]
[Black "Priyanka Nutakki"]
[Result "1-0"]
[ECO "D08"]
[WhiteElo "2503"]
[BlackElo "2308"]
[Annotator "TA"]
[PlyCount "101"]
[EventDate "2022.08.18"]
[EventCountry "ITA"]
[SourceTitle "playchess.com"]
[Source "ChessBase"]
[SourceQuality "1"]
[TimeControl "5400+30"]

{[%evp 10,101,61,35,35,40,47,0,0,0,14,0,0,0,0,-12,0,-15,23,-23,-3,-65,-62,-66,-70,-64,-72,-88,-73,-104,-43,-58,-10,-55,50,64,99,113,113,94,112,107,115,107,95,104,170,30,42,53,92,100,83,62,104,100,179,141,121,82,162,119,160,167,360,211,250,245,208,162,180,168,126,60,55,65,154,147,572,562,29973,29974,7142,6659,2904,2655,2752,2390,29993,29961,5189,5189,1814,1432]} 1. d4 {[%emt 0:00:02]} d5 {[%emt 0:07:53]} 2. c4 {[%emt 0:00:12]} e5 {[%emt 0:00:49]} 3. dxe5 {[%emt 0:03:03]} d4 {[%emt 0:00:06]} 4. Nf3 {[%emt 0:00:04]} Nc6 {[%emt 0:00:03]} 5. a3 {[%emt 0:00:07]} Bg4 {[%emt 0:00:20]} 6. Bf4 {[%emt 0:06:49]} Nge7 {[%emt 0:02:31] D08: Albin Counter Gambit.} 7. h3 {[%emt 0:08:16]} Bxf3 {[%emt 0:01:16] [#]} 8. gxf3 $146 {[%emt 0:01:58]} ({Predecessor:} 8. exf3 Ng6 9. Bh2 a5 10. f4 Be7 11. Bd3 O-O 12. O-O Bc5 13. Nd2 b6 14. Re1 {1-0 (25) Leenhouts,K (2443)-Kozelov,R (2163) Chess.com INT 2019}) 8... Ng6 {[%emt 0:00:20][%csl LRe5,LRf4] The position is equal.} 9. Bg3 {[%emt 0:00:03] Threatens to win with f4.} Ngxe5 {[%emt 0:02:26]} 10. Qb3 {[%emt 0:02:39]} Rb8 {[%emt 0:19:48]} 11. Nd2 {[%emt 0:09:29]} Be7 {[%emt 0:06:32]} 12. f4 {[%emt 0:06:33]} Nd7 {[%emt 0:00:32]} 13. Qf3 {[%emt 0:03:10]} a5 {[%emt 0:02:52]} 14. h4 {[%emt 0:00:06]} (14. O-O-O {might be stronger.}) 14... Nc5 {[%emt 0:11:13][%cal Od4d3]} 15. Bh3 {[%emt 0:01:22]} (15. Nb3 $11) 15... d3 $15 {[%emt 0:02:53]} (15... Bxh4 $2 16. Bxh4 Qd6 17. b4 axb4 18. axb4 Nxb4 19. Ne4 $18) 16. e3 {[%emt 0:01:38] Inhibits Nd4.} Bf6 {[%emt 0:00:11]} (16... Bxh4 $2 17. Bxh4 Qd6 18. Ne4 d2+ 19. Nxd2 $18) 17. Rb1 {[%emt 0:01:01]} O-O {[%emt 0:10:20]} (17... Bxh4 $2 18. Bxh4 Qd6 19. b4 axb4 20. axb4 Nxb4 21. Rxb4 $18) 18. Kf1 {[%emt 0:04:50]} Re8 {[%emt 0:00:33]} (18... Bxh4 $2 19. Bxh4 Ne7 20. Qh5 $18) 19. h5 {[%emt 0:07:12][%cal Oh5h6]} h6 {[%emt 0:00:19]} (19... a4 $17 20. h6 g6) 20. Kg2 {[%emt 0:08:17]} Na4 {[%emt 0:04:26]} (20... Qe7 $15) 21. Qd5 $11 {[%emt 0:09:38]} Nb6 {[%emt 0:08:03]} (21... Nxb2 $15 22. Qb5 Na7) 22. Qf5 $14 {[%emt 0:06:07]} a4 {[%emt 0:06:56]} 23. Rhd1 {[%emt 0:07:19]} Ne7 {[%emt 0:01:31]} 24. Qg4 {[%emt 0:00:23]} Nxc4 {[%emt 0:00:41]} 25. Nxc4 {[%emt 0:01:00]} Qd5+ {[%emt 0:00:01]} 26. Qf3 {[%emt 0:00:01]} Qxc4 {[%emt 0:00:02]} 27. e4 $1 {[%emt 0:00:01]} Bd4 {[%emt 0:05:04]} (27... Nc6 $16) 28. Qxd3 {[%emt 0:02:23]} (28. Rbc1 $18 Qb5 29. Rxc7 (29. Qxd3 Qxd3 30. Rxd3 c5 $14) (29. Rxd3 c5 $14)) 28... Qxd3 $11 {[%emt 0:00:02]} 29. Rxd3 {[%emt 0:00:00]} Nc6 {[%emt 0:00:46]} 30. e5 {[%emt 0:00:43]} Rbd8 {[%emt 0:02:40]} 31. Bf5 {[%emt 0:01:30]} Na5 {[%emt 0:00:49]} 32. Bh4 {[%emt 0:03:13]} f6 {[%emt 0:00:01]} (32... Rd5 $16 {was called for.}) 33. Bg6 {[%emt 0:00:47]} Re6 {[%emt 0:00:41]} 34. Kh1 {[%emt 0:01:03]} c5 {[%emt 0:00:29]} (34... Kf8 $16) 35. Bf5 {[%emt 0:00:41]} Rb6 {[%emt 0:00:21]} 36. Rg1 {[%emt 0:00:14] Strongly threatening exf6.} Kf8 $2 {[%emt 0:01:39]} (36... Rf8) 37. exf6 {[%emt 0:05:11]} (37. Rdg3 $142 g5 38. hxg6 (38. fxg5 fxg5 39. Rf3 Bxe5 $17)) 37... gxf6 $18 {[%emt 0:00:21]} 38. Rdg3 {[%emt 0:00:01] And now Rg8+ would win.} Ke7 {[%emt 0:00:47]} 39. Re1+ {[%emt 0:00:02]} Kf7 {[%emt 0:00:50]} 40. Rg6 $36 {[%emt 0:00:37][%mdl 2048] Black is under strong pressure.} Rh8 {[%emt 0:01:08]} 41. Be4 {[%emt 0:02:03] White is more active. This bishop pair is nice.} (41. Reg1 $16 {aiming for Rg7+.} Ke7 42. Rg7+ Kd6 43. Rd7+ Kc6 44. Rg6 Bxb2 45. Bxf6 Bxf6 46. Rxf6+ Kb5 47. Bd3+ c4 48. Rd5+ Ka6 49. Rff5 $1) 41... Rd6 $14 {[%emt 0:00:31]} 42. Reg1 {[%emt 0:00:01]} Bxb2 {[%emt 0:00:58] [#]} ({Black should try} 42... Ke8 $14) 43. Rg7+ $1 $16 {[%emt 0:00:12]} Kf8 $2 {[%emt 0:00:30][%mdl 8192] This costs Black the game.} (43... Ke8 $16 {is more resistant.}) 44. Rc7 $18 {[%emt 0:00:11] Rc8+ is the strong threat.} f5 {[%emt 0:00:37]} 45. Be7+ {[%emt 0:00:32][%mdl 64] Skewer, Double Attack} Ke8 {[%emt 0:00:04]} 46. Bxf5 {[%emt 0:00:24]} Rc6 {[%emt 0:01:12]} 47. Bg6+ {[%emt 0:00:06]} Rxg6 {[%emt 0:00:01]} 48. hxg6 {[%emt 0:00:19][%cal Bh5g6,Bg6g7][%mdl 32] White threatens Re1 and mate.} c4 {[%emt 0:00:20]} 49. g7 {[%emt 0:00:28]} Rg8 {[%emt 0:00:02]} 50. Rc8+ {[%emt 0:00:09]} Kf7 {[%emt 0:00:01]} 51. Rf8+ {[%emt 0:00:01] Weighted Error Value: White=0.21 (precise) /Black=0.76} 1-0

[Event "1st Bella Italia International 2022"]
[Site "Lignano"]
[Date "2022.08.19"]
[Round "4.3"]
[White "Loiacono, Leonardo"]
[Black "Ghosh, Diptayan"]
[Result "1/2-1/2"]
[ECO "E33"]
[WhiteElo "2291"]
[BlackElo "2538"]
[Annotator "TA"]
[PlyCount "135"]
[EventDate "2022.08.18"]
[EventCountry "ITA"]
[SourceTitle "playchess.com"]
[Source "ChessBase"]
[SourceQuality "1"]
[TimeControl "5400+30"]

{[%evp 17,135,26,22,19,24,30,25,25,43,25,26,14,50,0,11,-9,44,29,43,-62,7,7,13,16,8,8,4,-7,0,0,0,0,0,0,0,0,0,-142,-141,-128,-134,-128,-138,-139,-136,-135,-137,-137,-131,-139,-130,-515,-129,-126,-126,-123,-115,-116,-116,-115,-116,-168,-146,-164,-154,-167,-168,-178,-141,-145,-145,-160,-159,-195,-196,-195,-195,-195,-195,-188,-161,-173,-165,-215,0,-216,-181,-210,-193,-218,-201,-189,-99,-209,-146,-252,-271,-270,-254,-245,-223,-204,0,0,0,0,0,0,0,0,0,0,0,0,0,0,0,0,12,-2112]} 1. d4 {[%emt 0:08:25]} Nf6 {[%emt 0:00:27]} 2. c4 {[%emt 0:00:04]} e6 {[%emt 0:00:04]} 3. Nc3 {[%emt 0:00:03]} Bb4 {[%emt 0:00:08]} 4. Qc2 {[%emt 0:00:03]} d6 {[%emt 0:00:21]} 5. Nf3 {[%emt 0:00:04]} Nc6 {[%emt 0:01:02]} 6. Bd2 {[%emt 0:01:27]} O-O {[%emt 0:00:29]} 7. a3 {[%emt 0:00:18]} Bxc3 {[%emt 0:00:06]} 8. Bxc3 {[%emt 0:00:04]} Qe7 {[%emt 0:00:13]} 9. b4 {[%emt 0:01:11]} e5 {[%emt 0:06:35]} 10. dxe5 {[%emt 0:01:42] E33: Nimzo-Indian: Classical: 4...Nc6.} Nxe5 {[%emt 0:00:51]} 11. Nxe5 {[%emt 0:00:23]} dxe5 {[%emt 0:00:05]} 12. e3 {[%emt 0:00:15] White has an edge.} b6 {[%emt 0:06:42]} 13. Be2 {[%emt 0:00:58]} Bb7 {[%emt 0:02:17]} 14. f3 {[%emt 0:02:01] [#]} Nh5 $146 {[%emt 0:18:32]} (14... e4 $5 {[%cal Re4f3]}) ({Predecessor:} 14... Nd7 15. O-O Rfd8 16. Rad1 Qg5 17. Bd2 c5 18. Bd3 Qh6 19. Bf5 cxb4 20. axb4 Nf8 {½-½ (32) Lorscheid,G (2348)-Heinemann,T (2485) Nuremberg 2008}) 15. Qf5 {[%emt 0:12:05]} Qh4+ {[%emt 0:02:10]} 16. Kd2 {[%emt 0:00:02]} Rad8+ {[%emt 0:05:55]} (16... Rae8 $11) 17. Kc2 $14 {[%emt 0:00:09]} Bc8 $1 {[%emt 0:04:14]} (17... Qf2 18. Rae1 $16) 18. Qe4 {[%emt 0:15:43]} (18. Qxe5 $14 Rde8 19. Qd4 (19. Qxc7 $2 Rxe3 20. Rhe1 Bf5+ 21. Kb3 Rc8 $19)) 18... Qxe4+ {[%emt 0:11:29]} (18... Qf2 $15 19. Rae1 Rfe8) 19. fxe4 $11 {[%emt 0:00:08]} Nf6 {[%emt 0:00:04][%cal Bh5f6,Bf6e4,Be4f2][%mdl 32]} 20. Bxe5 {[%emt 0:00:46]} Nxe4 {[%emt 0:00:05]} 21. Rhd1 {[%emt 0:00:50] Against Rd2+} Bf5 {[%emt 0:02:08] Strongly threatening ...Nf2+.} 22. Kb3 {[%emt 0:04:12]} Rde8 {[%emt 0:07:32][%cal Bd8e8,Be8e3,Be3b3][%mdl 32]} 23. Bxc7 {[%emt 0:02:24]} Nf2 {[%emt 0:00:37][%csl LRd1,LRe3]} 24. Rd2 {[%emt 0:01:11]} Rxe3+ {[%emt 0:00:11]} 25. Kb2 {[%emt 0:00:19]} Rc8 $36 {[%emt 0:06:39][%mdl 2048] Black is pushing.} 26. Bf1 {[%emt 0:07:21]} Ne4 {[%emt 0:02:11]} 27. Rd8+ {[%emt 0:00:42]} (27. Rdd1 $11 {keeps the balance.} Nf2 28. Rd2) 27... Rxd8 $17 {[%emt 0:00:04]} 28. Bxd8 {[%emt 0:00:05]} Nd2 $1 {[%emt 0:01:09]} 29. Rd1 {[%emt 0:03:33]} Rb3+ $1 {[%emt 0:01:37]} 30. Ka2 {[%emt 0:01:10]} ({Avoid the trap} 30. Kc1 $2 Nxf1 31. Rxf1 Rb1+ 32. Kd2 Rxf1 $19) 30... Bb1+ {[%emt 0:00:23]} 31. Ka1 {[%emt 0:00:09]} Rxa3+ {[%emt 0:00:49]} 32. Kb2 {[%emt 0:00:06]} Rb3+ {[%emt 0:02:57]} 33. Ka1 {[%emt 0:00:29]} Nxf1 {[%emt 0:04:15]} 34. c5 $2 {[%emt 0:03:00][%mdl 8192]} (34. Rxf1 $17 Be4 35. Ka2 Rxb4 36. Rc1) 34... bxc5 $2 {[%emt 0:01:43]} 35. Rxf1 $19 {[%emt 0:02:19][%mdl 4096] Endgame KRB-KRB} Be4 {[%emt 0:00:50]} ({Resist} 35... cxb4 36. Rxb1 Ra3+ 37. Kb2 $14) 36. bxc5 {[%emt 0:00:39]} Bxg2 {[%emt 0:02:34]} 37. Rg1 {[%emt 0:01:18]} Be4 {[%emt 0:00:05]} 38. Bf6 {[%emt 0:00:44]} Bg6 {[%emt 0:00:07]} 39. Bd4 {[%emt 0:01:37]} (39. Ka2 $17 Rb5 40. Bd4) 39... Rb4 {[%emt 0:00:44]} 40. Be3 {[%emt 0:01:06]} Re4 {[%emt 0:01:45]} 41. Re1 {[%emt 0:01:53]} f6 {[%emt 0:00:37]} 42. Kb2 {[%emt 0:01:12]} Kf7 {[%emt 0:00:33]} 43. Kc3 {[%emt 0:02:16]} Ke6 {[%emt 0:01:09]} 44. Kd2 {[%emt 0:00:04]} Ra4 {[%emt 0:02:14] Inhibits Ra1.} 45. Bf4+ {[%emt 0:00:35]} Kd5 {[%emt 0:00:29]} 46. Bd6 {[%emt 0:00:07]} Be4 {[%emt 0:00:35]} 47. Kc3 {[%emt 0:00:45]} a5 {[%emt 0:00:29]} 48. Rd1+ {[%emt 0:01:06]} Ke6 {[%emt 0:01:24]} 49. Bf8 {[%emt 0:01:46]} g5 {[%emt 0:00:09]} 50. Rd8 {[%emt 0:00:21]} (50. Bg7 $142) 50... Ra2 $2 {[%emt 0:01:46]} (50... Ra3+ $19 51. Kc4 Ra2) 51. Bd6 $2 {[%emt 0:00:28]} (51. Re8+ $1 $11 Kd5 52. Rxe4 Ra3+ 53. Kb2) 51... Kf5 {[%emt 0:02:13]} 52. Rf8 {[%emt 0:01:16]} h5 {[%emt 0:00:30]} 53. Be7 {[%emt 0:01:14]} Rxh2 {[%emt 0:00:29] ...h4 is the strong threat.} 54. Bxf6 {[%emt 0:01:10]} Rg2 {[%emt 0:00:58]} (54... g4 $19 {Hoping for ...g3.} 55. Bd8+ Kg6) 55. Kd4 {[%emt 0:00:42]} (55. Bd8+ $17 Kg4 56. Rg8) 55... Bc6 {[%emt 0:01:02]} 56. Be5+ {[%emt 0:00:52]} (56. Bd8+ $17 Kg4 57. Bxa5) 56... Kg4 {[%emt 0:00:07]} 57. Rf6 {[%emt 0:00:06]} Bf3 {[%emt 0:01:27]} (57... Rd2+ 58. Ke3 Rd5 59. Bd4 $17) 58. c6 {[%emt 0:01:06][%cal Of6f3,Bc5c6,Bc6c7][%mdl 32] [#]} Rd2+ $1 {[%emt 0:00:52]} ({Stronger than} 58... Rc2 59. c7 $11) 59. Kc3 {[%emt 0:00:16] [#]} Rd8 {[%emt 0:00:16]} (59... Re2 $1 $19 {[%cal Re2e5]} 60. Bc7 a4) 60. c7 $1 $11 {[%emt 0:00:40] The position is equal.} Rc8 {[%emt 0:00:03]} 61. Kd4 {[%emt 0:00:51]} a4 {[%emt 0:00:29]} 62. Rb6 {[%emt 0:01:14] aiming for Rb8.} a3 {[%emt 0:00:19]} 63. Ra6 {[%emt 0:01:20]} Re8 {[%emt 0:00:30]} 64. Rxa3 {[%emt 0:00:14] Threatens to win with Rb3.} Bb7 {[%emt 0:00:01]} 65. Rb3 {[%emt 0:00:21]} Bc8 {[%emt 0:00:05]} 66. Rg3+ {[%emt 0:00:19]} Kf5 {[%emt 0:00:05]} 67. Rf3+ {[%emt 0:00:07]} Ke6 {[%emt 0:00:37]} 68. Ke4 $2 {[%emt 0:23:04][%mdl 40960] Weighted Error Value: White=0.42/Black=0.31. An unexpected result.} (68. Rf6+ $11 Kd7 69. Rg6) 1/2-1/2

[Event "1st Bella Italia International 2022"]
[Site "Lignano"]
[Date "2022.08.19"]
[Round "4.4"]
[White "Karthik Venkataraman"]
[Black "Zeller, Frank"]
[Result "1-0"]
[ECO "E11"]
[WhiteElo "2483"]
[BlackElo "2356"]
[Annotator "TA"]
[PlyCount "95"]
[EventDate "2022.08.18"]
[EventCountry "ITA"]
[SourceTitle "playchess.com"]
[Source "ChessBase"]
[SourceQuality "1"]
[TimeControl "5400+30"]

{[%evp 18,95,23,7,13,-11,-4,-37,0,-7,16,-3,71,67,65,61,53,63,58,53,118,118,119,114,110,106,124,108,112,104,125,120,120,90,108,51,52,60,112,105,116,91,90,88,91,97,100,52,79,50,108,85,104,64,103,83,95,93,114,75,64,35,37,24,27,18,104,54,114,56,216,222,217,221,300,285,428,387,488,450]} 1. Nf3 {[%emt 0:00:03]} Nf6 {[%emt 0:00:23]} 2. d4 {[%emt 0:00:44]} d5 {[%emt 0:00:32]} 3. c4 {[%emt 0:00:06]} e6 {[%emt 0:00:30]} 4. g3 {[%emt 0:00:28]} Bb4+ {[%emt 0:00:29]} 5. Bd2 {[%emt 0:00:07]} Be7 {[%emt 0:00:20]} 6. Bg2 {[%emt 0:00:08]} O-O {[%emt 0:00:18]} 7. Qc2 {[%emt 0:00:05]} Nbd7 {[%emt 0:01:22]} 8. O-O {[%emt 0:00:36]} c6 {[%emt 0:00:30]} 9. Rd1 {[%emt 0:00:36]} b6 {[%emt 0:00:32]} 10. b3 {[%emt 0:00:08]} Bb7 {[%emt 0:01:51] E11: Bogo-Indian.} 11. a4 {[%emt 0:00:07]} Rc8 {[%emt 0:03:50] [#]} 12. Na3 $146 {[%emt 0:11:45][%cal Oa4a5]} ({Predecessor:} 12. a5 c5 13. axb6 axb6 14. Ra7 Bc6 15. Bf4 Ra8 16. Rxa8 Qxa8 17. Ne5 Nxe5 18. dxe5 {½-½ (50) Kazakovskiy,V (2430)-Grigoriants,S (2563) Tallinn 2016}) 12... Bd6 {[%emt 0:25:36] Black is slightly better.} 13. Qb2 {[%emt 0:02:31]} Qe7 {[%emt 0:01:37]} 14. b4 {[%emt 0:02:05]} e5 {[%emt 0:03:45]} (14... Bb8 $11) 15. cxd5 $16 {[%emt 0:02:01]} cxd5 {[%emt 0:02:34]} 16. Nb5 {[%emt 0:09:15]} Bb8 {[%emt 0:00:18]} 17. dxe5 {[%emt 0:01:17]} Nxe5 {[%emt 0:00:09]} 18. Bc3 $1 {[%emt 0:00:39][%cal Rc3e5]} Nc4 {[%emt 0:12:00]} (18... Nfg4 $14) 19. Bxf6 {[%emt 0:01:01]} Qxf6 {[%emt 0:00:53]} 20. Qxf6 {[%emt 0:02:08]} gxf6 {[%emt 0:00:02]} 21. Bh3 {[%emt 0:07:25]} Rcd8 {[%emt 0:01:21]} 22. Rab1 {[%emt 0:02:47]} Rfe8 {[%emt 0:01:54]} 23. Nfd4 {[%emt 0:00:53]} a6 {[%emt 0:04:29]} 24. Nc3 {[%emt 0:00:06]} Be5 {[%emt 0:00:27]} 25. Bg4 {[%emt 0:01:18]} Re7 {[%emt 0:04:16]} 26. Rb3 {[%emt 0:04:11]} (26. b5 $16) 26... Rc7 $14 {[%emt 0:00:24]} 27. Bf3 {[%emt 0:02:50][%cal Oc3d5]} a5 {[%emt 0:15:20]} (27... Bxd4 $14 28. Rxd4 Ne5) 28. Ncb5 {[%emt 0:03:11]} Rcc8 {[%emt 0:03:17]} 29. Na7 {[%emt 0:00:13]} Rc7 {[%emt 0:00:41]} 30. bxa5 {[%emt 0:01:12]} bxa5 {[%emt 0:02:16]} 31. Nab5 {[%emt 0:01:43]} Rc5 {[%emt 0:01:37]} 32. e3 {[%emt 0:01:23]} ({White should play} 32. Bg4 $16) 32... Ba6 {[%emt 0:02:48]} 33. h4 {[%emt 0:07:59][%cal Bh2h4,Bh4h5][%mdl 32]} Rb8 {[%emt 0:03:36]} (33... Bxb5 $14 34. Rxb5 Rxb5 35. axb5 (35. Nxb5 Nb2 $14) 35... Bxd4 36. Rxd4 Nb6) 34. Rc1 {[%emt 0:01:37]} Rd8 {[%emt 0:03:03]} 35. h5 {[%emt 0:02:58]} h6 {[%emt 0:00:13]} 36. Rbb1 {[%emt 0:01:30]} Bc8 {[%emt 0:01:11]} 37. Nb3 {[%emt 0:08:37] Pair of Knights!} Rc6 {[%emt 0:00:08]} 38. Rd1 {[%emt 0:00:07]} Be6 {[%emt 0:00:19]} 39. N3d4 {[%emt 0:01:05]} (39. e4 $5 {[%cal Re4d5]} Rcc8 40. Na7 $14) 39... Rcc8 {[%emt 0:00:23]} 40. Be2 {[%emt 0:01:27]} Kf8 {[%emt 0:01:07]} 41. Kg2 {[%emt 0:00:31]} Rd7 {[%emt 0:01:24]} (41... Bd7 $11 {keeps the balance.}) 42. Bd3 {[%emt 0:00:37]} (42. e4 $16) 42... Nb6 {[%emt 0:00:39]} (42... Rdd8 $14) 43. Ra1 {[%emt 0:01:35] White is more active.} (43. Nxe6+ $16 fxe6 44. f4) 43... Rc5 $2 {[%emt 0:01:34] [#] Loses the game.} (43... Rb7 $14) 44. f4 $1 $18 {[%emt 0:02:49]} Bg4 {[%emt 0:00:47]} 45. fxe5 {[%emt 0:00:52] Black must now prevent Rdc1.} fxe5 {[%emt 0:01:04]} 46. Nb3 {[%emt 0:00:56][%csl LRa5,LRc5]} Rc6 {[%emt 0:01:02]} (46... Rc8 $142 47. Re1 (47. Nxa5 e4 $16) 47... Ra8) 47. Nxa5 {[%emt 0:01:09]} Re6 {[%emt 0:00:36]} 48. Rd2 {[%emt 0:00:35] Weighted Error Value: White=0.14 (very precise) /Black=0.37} 1-0